Cogmind - Beta 15 @@@ ROGUE MODE // 2025.09.10 @ 17:48:24 Player: the Result: Destroyed by IJ-3XM(R) with Subdweller Laser Performance ------------- Evolutions (0) 0 Regions Visited (3) 600 Robots Destroyed (46) 230 Value Destroyed (651) 651 Prototype IDs (1) 20 Alien Tech Used (0) 0 Bonus (0) 0 TOTAL SCORE: 1501 Bonus ------- None Cogmind --------- Core Integrity 0/250 Matter 300/300 Energy 100/100 System Corruption 0% Temperature Cool (6) Movement Walking (190) Ox1 Location -10/Subcaves Parts ------- > --- POWER (1) -------- (None) > --- PROPULSION (2) --- Carbon-fiber Leg > --- UTILITY (2) ------ Medium Storage Unit Hardened Light Armor Plating > --- WEAPON (2) ------- Flail Flail > --- INVENTORY (10) --- Aluminum Leg Aluminum Leg Improved Heat Sink Experimental Sensor Array Seismic Detector Hardened Light Armor Plating Hacking Suite Beamcaster Heavy Particle Cannon Improved Grenade Launcher Peak State ------------ > --- POWER ------------ Light Ion Engine > --- PROPULSION ------- Carbon-fiber Leg Carbon-fiber Leg > --- UTILITY ---------- Medium Storage Unit Experimental Sensor Array > --- WEAPON ----------- Flail Flail > --- INVENTORY -------- Aluminum Leg Aluminum Leg Aluminum Leg Improved Heat Sink Hardened Light Armor Plating Hardened Light Armor Plating Hacking Suite Beamcaster Heavy Particle Cannon Improved Grenade Launcher [Rating: 23] Favorites ----------- Power Light Ion Engine Engine Light Ion Engine Propulsion Aluminum Leg Leg Aluminum Leg Utility Seismic Detector Device Seismic Detector Storage Medium Storage Unit Protection Hardened Light Armor Plating Weapon Flail Energy Gun Small Laser Ballistic Gun Assault Rifle Special Weapon Mining Laser Impact Weapon Flail Build | -11 -10 -10 -10 ------- Run | Yrd Mat Min Sub Slots Evolved . | . . . . Power . | . . . . Propulsion . | . . . . Utility . | . . . . Weapon . | . . . . Parts Attached 33 | 7 20 5 1 Power 5 | 1 4 . . Engine 5 | 1 4 . . Core . | . . . . Reactor . | . . . . Propulsion 12 | 2 7 3 . Treads . | . . . . Leg 12 | 2 7 3 . Wheel . | . . . . Hover . | . . . . Flight . | . . . . Utility 8 | 2 3 2 1 Device 2 | 1 . 1 . Storage 4 | 1 3 . . Processor . | . . . . Hackware . | . . . . Protection 2 | . . 1 1 Artifact . | . . . . Weapon 8 | 2 6 . . Energy Gun 3 | . 3 . . Energy Cannon . | . . . . Ballistic Gun 2 | 2 . . . Ballistic Cannon . | . . . . Launcher . | . . . . Special Weapon 1 | . 1 . . Impact Weapon 2 | . 2 . . Slashing Weapon . | . . . . Piercing Weapon . | . . . . Special Melee Weapon . | . . . . Unidentified Prototypes 1 | . . 1 . Parts Lost 4 | . 2 . 2 Power 2 | . 1 . 1 Propulsion 1 | . . . 1 Utility . | . . . . Weapon 1 | . 1 . . Highest Loss Streak 2 | . 1 . 2 To Critical Strikes . | . . . . Average Backups 8 | 1 9 10 10 Power . | . . . . Propulsion 2 | . 2 2 2 Utility 3 | . 3 4 5 Weapon 2 | . 2 3 3 Tool/Special . | . . . . Unused Backups 13 | . 3 3 7 Power . | . . . . Propulsion 1 | . . . 1 Utility 7 | . 3 1 3 Weapon 5 | . . 2 3 Tool/Special . | . . . . Average Slot Usage (%) 97 | . 98 100 81 Engine 12 | . 13 14 4 Leg 27 | . 27 28 19 Device 13 | . 14 13 5 Storage 14 | . 14 14 14 Energy Gun 5 | . 9 . . Ballistic Gun 7 | . 13 . . Special Weapon 1 | . 2 . . Impact Weapon 13 | . 2 28 28 Peak Build Rating 23 | 7 10 23 16 Average Rating 10 | 4 8 14 14 On Entrance 8 | . 7 10 16 Naked Turns . | . . . . Heaviest Build 22 | 13 18 22 19 Greatest Support 30 | 20 20 30 30 Greatest Overweight (x) 1 | 1 1 1 1 Average Overweight (x) . | . . . . Largest Inventory Capacity 10 | 8 10 10 10 Average Capacity 9 | 6 9 10 10 Most Carried 10 | 4 10 10 10 Average Carried 8 | 1 9 9 10 Final Capacity 10 | 8 10 10 10 Final Carried 10 | 4 10 10 10 Class Distribution -------------------- 53% | Mutant 46% | Scavenger-Mutant Dominant Class ---------------- Mutant | -10/Materials Scavenger-Mutant | -10/Mines Mutant | -10/Subcaves Resources | -11 -10 -10 -10 ----------- Run | Yrd Mat Min Sub Matter Collected 1050 | 378 567 100 5 Remotely . | . . . . Salvage Created 1207 | 238 701 144 124 Parts 85 | 28 45 7 5 Haulers Intercepted 2 | . 2 . . Recyclers Shooed 4 | . 4 . . Parts Field Recycled . | . . . . Retrieved Matter . | . . . . Parts Self-Destructed . | . . . . Prevented . | . . . . Kills | -11 -10 -10 -10 ------- Run | Yrd Mat Min Sub Combat Hostiles Destroyed 25 | . 16 6 3 Melee 3 | . . 2 1 Guns 16 | . 16 . . Classes Destroyed 10 | 2 5 2 1 Worker 1 | . . 1 . Builder 1 | . . 1 . Tunneler 11 | 9 . 2 . Hauler 2 | . 2 . . Recycler 4 | 1 3 . . Operator 1 | . 1 . . Watcher 1 | . 1 . . Swarmer 15 | . 9 6 . Grunt 7 | . 7 . . Subdweller 3 | . . . 3 Best Kill Streak 4 | 4 4 3 2 Combat Bots Only 3 | . 3 3 2 Max Kills in Single Turn 2 | 2 2 1 1 Gunslinging 1 | . 1 . . Exploded . | . . . . Melee 1 | . . 1 1 Uniques/NPCs Destroyed . | . . . . Combat | -11 -10 -10 -10 -------- Run | Yrd Mat Min Sub Hostile Shots Fired 159 | . 101 27 31 Missed 41 | . 20 12 9 Hits 118 | . 81 15 22 Projectile 118 | . 81 15 22 Damage Taken 1338 | . 758 122 458 Core 269 | . 105 22 142 Absorbed by Shields . | . . . . Regen/Repaired (Parts) 153 | . 153 . . Core Remaining (%) 100 | 100 . . . Volleys Fired 105 | 18 87 . . Largest 2 | 2 2 . . Hottest 100 | 40 100 . . Shots Fired 182 | 36 146 . . Gun 159 | 36 123 . . Cannon . | . . . . Launcher . | . . . . Special 23 | . 23 . . Kinetic 130 | 36 94 . . Thermal 52 | . 52 . . Explosive . | . . . . Electromagnetic . | . . . . Robot Hit Streak 11 | 8 11 . . Robot Miss Streak 6 | 2 6 . . Penetration Max . | . . . . Secondary Targets 6 | . 6 . . Max Gunslinging Chain 1 | . 1 . . Shots Hit Robots 127 | 25 79 11 12 Core Hits 48 | 11 34 2 1 Critical Kills . | . . . . Critical Parts Destroyed 4 | . 1 1 2 Critical Strikes 5 | . 1 1 3 Destroy 1 | . 1 . . Smash 4 | . . 1 3 Melee Attacks 40 | . 4 21 15 Impact 40 | . 4 21 15 Slashing . | . . . . Piercing . | . . . . Sneak Attacks 4 | . . 4 . Combat Hostiles . | . . . . Follow-up Attacks 2 | . . 2 . Damage Inflicted 2340 | 332 1045 564 399 Guns 1340 | 332 1008 . . Cannons . | . . . . Explosions . | . . . . Melee 963 | . . 564 399 Ramming 13 | . 13 . . Kinetic 1155 | 332 823 . . Thermal 209 | . 209 . . Explosive . | . . . . Electromagnetic . | . . . . Impact 963 | . . 564 399 Slashing . | . . . . Piercing . | . . . . Highest Corruption . | . . . . Average Corruption . | . . . . Corruption Purged . | . . . . Corruption Blocked . | . . . . Overload Shots . | . . . . Overflow Damage 322 | . . 284 38 Projectiles . | . . . . Explosions . | . . . . Melee 322 | . . 284 38 Knockbacks 3 | . . 2 1 Impact 3 | . . 2 1 Kinetic . | . . . . Secondary . | . . . . Self-Inflicted Damage . | . . . . Shots . | . . . . Rammed . | . . . . Targets Rammed 2 | . 2 . . Kicked 2 | . 2 . . Crushed . | . . . . Highest Temperature 120 | 1 120 . . Average Temperature 37 | 1 37 . . Received Heat Transfer 282 | . 210 . 72 Siege Activations . | . . . . Martial Activations . | . . . . Shielding Activations . | . . . . Robots Disrupted . | . . . . Combat Hostiles . | . . . . Robots Corrupted 7 | . . 5 2 Combat Hostiles 6 | . . 4 2 Parts Fried 16 | . . 12 4 Impact Corruptions 14 | . . 12 2 Robots Melted . | . . . . Combat Hostiles . | . . . . Parts Melted . | . . . . Heat Transferred 450 | . 450 . . Parts Sabotaged . | . . . . Parts Stolen . | . . . . Parts Stripped . | . . . . Power Chain Reactions . | . . . . Alert | -11 -10 -10 -10 ------- Run | Yrd Mat Min Sub Maximum Alert Level . | . . . . Low Security (%) 100 | 100 100 100 . Level 1 . | . . . . Level 2 . | . . . . Level 3 . | . . . . Level 4 . | . . . . Level 5 . | . . . . High Security . | . . . . Max Security . | . . . . Peak Influence 104 | 15 104 75 . Initial 9 | . . 9 . Average 26 | 2 37 12 . Influence Increases 747 | 50 522 175 . Destroy 0b10 Robot/C 440 | . 320 120 . Destroy 0b10 Robot/NC 105 | 50 35 20 . Destroy Leader 86 | . 66 20 . Successful Hack 33 | . 33 . . Destroy Structure 23 | . 23 . . Lose Combat Pursuer 60 | . 45 15 . Influence Decreases 747 | 50 498 171 28 Entered New Map 31 | . . 15 16 Time Decay 705 | 50 487 156 12 Lost Part 11 | . 11 . . Squads Dispatched 4 | . 3 1 . Investigation 3 | . 2 1 . Extermination . | . . . . Reinforcement 1 | . 1 . . Assault . | . . . . Garrison . | . . . . Intercept . | . . . . Searches Triggered . | . . . . Construction Impeded . | . . . . Haulers Reinforced . | . . . . Active Scanning Responses . | . . . . Cargo Convoy Interrupts . | . . . . Stealth | -11 -10 -10 -10 --------- Run | Yrd Mat Min Sub Distress Signals 2 | . 2 . . Communications Jammed . | . . . . Distress Signals . | . . . . Times Spotted 42 | . 29 8 5 Peak Tracking Total 5 | . 5 3 2 Tactical Retreats 3 | . 2 1 . Traps | -11 -10 -10 -10 ------- Run | Yrd Mat Min Sub Traps Triggered . | . . . . Indirectly . | . . . . Trap Hack Attempts . | . . . . Triggered . | . . . . Disarmed . | . . . . Reprogrammed . | . . . . Reused . | . . . . Traps Extracted . | . . . . Installed . | . . . . Triggered . | . . . . Machines | -11 -10 -10 -10 ---------- Run | Yrd Mat Min Sub Machines Disabled . | . . . . Max in Single Turn . | . . . . Machines Repaired . | . . . . Machines Dismantled . | . . . . Machines Sabotaged . | . . . . Overloaded Fab Kills . | . . . . Hacking | -11 -10 -10 -10 --------- Run | Yrd Mat Min Sub Machines Accessed 10 | . 9 1 . Terminals 7 | . 7 . . Fabricators . | . . . . Repair Stations 1 | . 1 . . Recycling Units 1 | . 1 . . Scanalyzers . | . . . . Garrison Access . | . . . . Total Hacks 31 | . 30 1 . Successful 17 | . 16 1 . Failed 13 | . 13 . . Catastrophic 3 | . 3 . . Database Lockouts 1 | . 1 . . Manual 16 | . 16 . . Terminals 24 | . 24 . . Fabricators . | . . . . Repair Stations 4 | . 4 . . Recycling Units 2 | . 2 . . Scanalyzers . | . . . . Garrison Access . | . . . . Terminal Hacks 9 | . 8 1 . Part Schematic 1 | . 1 . . Robot Analysis 3 | . 3 . . Open Door 1 | . . 1 . Locate Traps 3 | . 3 . . Registered Components 1 | . 1 . . Fabricator Hacks . | . . . . Repair Station Hacks 4 | . 4 . . Scan Component 2 | . 2 . . Repair 2 | . 2 . . Recycling Unit Hacks . | . . . . Scanalyzer . | . . . . Garrison Access Hacks . | . . . . Unauthorized Hacks 4 | . 4 . . Terminals 3 | . 3 . . Track 1 | . 1 . . Botnet 2 | . 2 . . Fabricators . | . . . . Repair Stations . | . . . . Recycling Units 1 | . 1 . . Reject 1 | . 1 . . Scanalyzers . | . . . . Garrison Access . | . . . . Data Cores Recovered . | . . . . Used . | . . . . Hacking Detections 8 | . 8 . . Full Trace Events 2 | . 2 . . Feedback Events . | . . . . Feedback Blocked . | . . . . Robot Schematics Acquired . | . . . . Robots Built . | . . . . Authchips . | . . . . Time . | . . . . Total Robot Build Rating . | . . . . Part Schematics Acquired 1 | . 1 . . Parts Built . | . . . . Authchips . | . . . . Time . | . . . . Total Part Build Rating . | . . . . Parts Repaired 2 | . 2 . . Time 52 | . 52 . . Parts Recycled . | . . . . Recycled Matter . | . . . . Retrieved Matter . | . . . . Retrieved Components . | . . . . Parts Scanalyzed . | . . . . Part Schematics Acquired . | . . . . Parts Damaged . | . . . . Bothacking | -11 -10 -10 -10 ------------ Run | Yrd Mat Min Sub Used RIF Installer . | . . . . Robots Hacked . | . . . . Non-combat . | . . . . Combat . | . . . . Robot Hacks Applied . | . . . . Relay Couplers Released . | . . . . Fabnet Peak Effective % . | . . . . Robots Rewired . | . . . . Allies Hacked . | . . . . Hacks Repelled . | . . . . Allies | -11 -10 -10 -10 -------- Run | Yrd Mat Min Sub Total Allies . | . . . . Largest Group . | . . . . Highest-Rated Group . | . . . . Highest-Rated Ally . | . . . . Total Orders . | . . . . Ally Attacks . | . . . . Total Damage . | . . . . Kills . | . . . . Allies Corrupted . | . . . . Allies Melted . | . . . . Intel | -11 -10 -10 -10 ------- Run | Yrd Mat Min Sub Active Infowar (turns) 2766 | 31 1685 965 85 Sensors 2 | . . 2 . Seismic 2764 | 31 1685 963 85 Robot Analysis Total 3 | . 3 . . Derelict Logs Recovered 2 | . . 2 . Drone Launches . | . . . . Drone Recoveries . | . . . . Exploration | -11 -10 -10 -10 ------------- Run | Yrd Mat Min Sub Turns Passed 3157 | 258 1685 987 227 Spaces Moved 1996 | 102 1012 762 120 Core 42 | 42 . . . Treads . | . . . . Legs 1954 | 60 1012 762 120 Wheels . | . . . . Hover . | . . . . Flight . | . . . . Fastest Speed 50 | 50 120 120 120 Average Speed 122 | 109 120 120 159 Slowest Speed 190 | 120 190 190 190 Overloaded Moves . | . . . . Propulsion Burnouts . | . . . . Robots Hopped . | . . . . Potential Cave-ins . | . . . . Cave-ins Triggered . | . . . . Exploration Rate (%) 52 | 4 97 98 9 Regions Visited 3 Branch Regions 2 Pre-discovered Areas 2 | . . 2 . Known Exits Taken . | . . . . Unknown Exits Taken 3 | 1 1 1 . Scrap Searched 4 | . . 1 3 Spaces Dug 19 | . 19 . . Terrain Destroyed 23 | . 23 . . Melee 2 | . 2 . . Projectile 21 | . 21 . . AOE . | . . . . Terrain Rammed . | . . . . Walls Destroyed . | . . . . Machines Disabled . | . . . . Actions | -11 -10 -10 -10 --------- Run | Yrd Mat Min Sub Total 2439 | 208 1289 807 135 Wait 199 | 78 117 4 . Move 1993 | 101 1011 761 120 Hop . | . . . . Pick Up 26 | 4 17 5 . Fast Attach 9 | 7 1 1 . Attach 7 | . 7 . . Detach 1 | . . 1 . Swap 32 | . 22 9 1 Drop 30 | . 21 9 . Fire 105 | 18 87 . . Melee 35 | . 4 17 14 Ram . | . . . . Kick 2 | . 2 . . Crush . | . . . . Escape Stasis . | . . . . Rewire . | . . . . Trap . | . . . . Miscellaneous . | . . . . Route ------- -11/Scrapyard -10/Materials (discovered 5 exits: [*Mat x3] / *Min / [*Sub]) -10/Mines (discovered 3 exits: [*Mat x2] / [*Sub]) -10/Subcaves History --------- Turn | Location | Event 8 | -11/Scrapyard | Discovered new exit (range 15) 259 | -11/Scrapyard | Entered Materials 317 | -10/Materials | Build established: Mutant 864 | -10/Materials | Discovered new exit (range 15) 875 | -10/Materials | Discovered new exit (range 5) 935 | -10/Materials | Discovered new exit (range 16) 1072 | -10/Materials | Central database locked down 1139 | -10/Materials | Discovered new exit (range 7) 1356 | -10/Materials | Discovered new exit (range 13) 1594 | -10/Materials | Repaired Aluminum Leg 1622 | -10/Materials | Repaired Aluminum Leg 1944 | -10/Materials | Entered Mines 1949 | -10/Mines | Met a Derelict bent on vengeance 1954 | -10/Mines | Build established: Scavenger-Mutant 2126 | -10/Mines | Met a Derelict shopkeep closing up shop 2221 | -10/Mines | Learned Materials emergency access door positions 2292 | -10/Mines | Discovered new exit (range 13) 2305 | -10/Mines | Learned location of Storage (-8) 2382 | -10/Mines | Discovered new exit (range 12) 2416 | -10/Mines | Found a damaged Exp. Sensor Array with a note attached 2419 | -10/Mines | Found Prototype Device 2419 | -10/Mines | Identified Exp. Sensor Array 2440 | -10/Mines | Learned location of Zion (-7) 2508 | -10/Mines | Discovered new exit (range 10) 2808 | -10/Mines | Core integrity fell below 50% 2931 | -10/Mines | Entered Subcaves 2932 | -10/Subcaves | Approached by a straggling Scientist 3015 | -10/Subcaves | Core integrity fell below 20% 3140 | -10/Subcaves | Ambushed by Subdwellers from Twisted Machinery 3158 | -10/Subcaves | Destroyed by IJ-3XM(R) with Subdweller Laser Last Messages --------------- 03015_ Sub. Optics fried. 03015_ Sub. Power Source fried. 03018_ Carbon-fiber Leg destroyed. 03026_ 4A-RL7(R) knocked back. 03033_ 4A-RL7(R) destroyed. 03036_ Acquired 5 matter. 03080_ Subatomizers dissect the Machine Analyzer. 03085_ Searching scrap... 03085_ Found Flamer. 03085_ Found 44 Matter. 03087_ Searching scrap... 03087_ Found Ripper. 03087_ Found 41 Matter. 03089_ Searching scrap... 03089_ Found Sub. Machine Gun. 03089_ Found 60 Matter. 03140_ 20-QYG(R) emerges from the Twisted Machinery. 03155_ 8T-SR2(O) collects matter. Map ----- +----------------------------------------------------+ | ?????????????????????????????????????????????????? | | ?????????????????????????????????????????????????? | | ?????????????????????????????????????????????????? | | ?????????????????????????????????????????????????? | | ?????????????????????????????????????????????????? | | ?????????????????????????????????????????????????? | | ?????????????????????????????????????????????????? | | ?????????????????????????????????????????????????? | | ?????????????????????????????????????????????????? | | ?????????????????????????????????????????????????? | | ?????????????????????????????????????????????????? | | ?????????????????????????????????????????????????? | | ?????????????????##??????????????????????????????? | | ?????????????????? ?????????????????????????????? | | ??????????????????# ?????????????????????????????? | | ?????????????????## ????????????????????????????? | | ?????????????????# #???????????????????????????? | | ??????????????????# ###????????????????????????? | | ???????????# ##### ##################??###### | | ????????????# ## ## ## ####"%[%# | | ???????????## !&! ##|%/"## | | ??????????# =%O= #&####? | | ?????????# &# " #? | | ?????????# ## ## ### | | ?????????## ## ## ## #" " # | | ??????????# ## @ ####### ###### &%# | | ??????????##???# "" R ####?????#### ## &% | | ?????????????# " "" ##?????????# | | ????????????# " " "" #??????????# % | | ????????????##""###### ?????????# # | | ?????????????????????## ?????????## ### ## | | ?????????????????????? ?????????## ???## ## | | ????????????????????? ?????????# ????# ### | | ????????????????????? ?????????# #### ##? | | ????????????????????## ???????## & &## | | ?????????????????????#R ??????# !% =&%# | | ?????????????????????"" ???????## ##### *## | | ????????????????????? " ???????# ????# ""# | | ??????????????????????? ?????? ?????# " # | | ?????????????????????????????## ??????## " # | | ??????????????????????????????## # ????????# " # | | ?????????????????????????????????# ????????? "#" | | ?????????????????????????????????# ??????????# | | ?????????????????????????????????????????????# ? | | ?????????????????????????????????????????????# ?# | | ????????????????????????????????????????????? ?? | | ?????????????????????????????????????????????? ?? | | ?????????????????????????????????????????????? ?? | | ??????????????????????????????????????????????""?? | | ??????????????????????????????????????????????#"?? | +----------------------------------------------------+ Best States ------------- Heat Dissipation 25 Energy Generation 10 Energy Capacity 125 Matter Stores 300 Matter Capacity 300 Sight Range 16 Robot Scan Range 20 Terrain Scan Density 10 Armor Coverage 150 Evasion (%) 55 Item Schematics ----------------- Hcp. Storage Unit | -10/Materials | Hacked Robot Schematics ------------------ None Fabricated ------------ Nothing Repaired ---------- Aluminum Leg | 13% | -10/Materials Aluminum Leg | 16% | -10/Materials Alien Tech Used ----------------- None Achievements -------------- None Challenges ------------ None Game ------ Seed TrackerArmageddonReplica Manual? 0 Play Time 00:21:49 Cumulative 314.6 hours Start 2025.09.10 @ 17:28:05 End 2025.09.10 @ 17:48:24 Sessions 1 Manual Loads 0 Difficulty Rogue Special Mode None Game No. 217 Rogue 217 Adventurer 0 Explorer 0 Win Type - Total 3 Types 3/0/0/0/0/0/0/0/0/0 Lore% 75 Gallery% 75 Achievement% 63 Wizard Run 0 Options --------- Layout 1 ASCII 0 Keyboard 0 Movement Mouse Keybinds 0 Fullscreen 1 Font 32/SmallcapsGlow Map View 50x35 Zoom Use 0% Tactical HUD 1 Map Filters NONE Filters NONE Steam 1 RUN: 61856132-e9a7-480a-a45b-26a9e426d43d